bitfinex-derivatives/quotes_ETHF0:USTF0_20260201
["timestamp","ask_amount","ask_price","bid_price","bid_amount"]
[1769979634974,0.21593,2318.4,2317.8,0.18229299]
[1769979635477,0.21593,2318.1,2317.8,0.18229299]
[1769979635775,0.00405797,2318.9,2317.3,0.18199229]
[1769979635776,0.21593,2318.2,2317.3,0.18199229]
[1769979635977,0.21593,2318.6,2317.3,0.18199229]
[1769979636173,0.21593,2318.5,2317.3,0.18199229]
[1769979636373,0.21587,2318.6,2317.3,0.18199229]
[1769979636672,0.21593,2318.5,2317.3,0.18199229]
[1769979636875,0.21593,2318.2,2317.3,0.18199229]
[1769979637074,0.21593,2318.1,2317.3,0.18199229]
[1769979637777,0.21593,2317.9,2317.3,0.18199229]
[1769979638076,0.21593,2318.1,2317.3,0.18199229]
[1769979638476,0.21593,2317.9,2317.3,0.18199229]
[1769979638677,0.21588,2318.5,2317.3,0.18199229]
[1769979638678,0.21593,2318.1,2317.3,0.18199229]
[1769979639082,0.21593,2317.9,2317.3,0.18199229]
[1769979639273,0.21593,2318.1,2317.3,0.18199229]
[1769979639681,0.21588,2318.5,2317.3,0.18199229]
[1769979639980,0.21593,2318.4,2317.3,0.18199229]
[1769979640477,0.21593,2318.2,2317.3,0.18199229]
[1769979640875,0.21593,2318.1,2317.3,0.18199229]
[1769979641074,0.43182,2318.4,2317.3,0.18199229]
[1769979641374,0.21593,2318.2,2317.3,0.18199229]
[1769979641578,0.21593,2318.1,2317.3,0.18199229]
[1769979641881,0.2159,2318.3,2317.3,0.18199229]
[1769979641882,0.43183,2318.3,2317.3,0.18199229]
[1769979642076,0.21593,2317.6,2317.0,0.00427064]
[1769979642276,0.21595,2317.8,2317.0,0.00427064]
[1769979642472,6.42988468,2318.4,2317.0,0.00427064]
[1769979642473,0.21593,2317.5,2317.0,0.1878084]
[1769979642674,0.21597,2317.6,2317.0,0.00427064]
[1769979642877,0.21593,2317.4,2317.0,0.00427064]
[1769979643276,0.21593,2317.3,2317.0,0.00427064]
[1769979643478,0.21593,2317.4,2317.0,0.00427064]
[1769979643683,0.21593,2317.4,2317.0,0.18754878]
[1769979643883,0.21593,2317.3,2317.0,0.18754878]
[1769979644083,0.21593,2317.4,2317.0,0.18754878]
[1769979644583,0.21593,2317.3,2317.0,0.18754878]
[1769979644783,0.21597,2317.6,2317.0,0.18754878]
[1769979644784,0.21593,2317.4,2317.0,0.18754878]
[1769979645182,0.21593,2317.3,2317.0,0.18754878]
[1769979645380,0.21593,2317.4,2317.0,0.18754878]
[1769979645785,0.21593,2317.3,2317.0,0.18754878]
[1769979645985,0.21597,2317.6,2317.0,0.18754878]
[1769979645986,0.21593,2317.4,2317.0,0.18754878]
[1769979646485,0.21593,2317.3,2317.0,0.18754878]
[1769979646688,0.21593,2317.4,2317.0,0.18754878]
[1769979646983,6.42988468,2318.0,2317.0,0.18754878]
[1769979647282,6.64576468,2318.6,2317.0,0.18754878]
[1769979647487,0.21593,2318.4,2317.1,0.18360903]
[1769979647686,0.21593,2318.3,2317.1,0.18360903]
[1769979648083,0.21593,2318.1,2317.1,0.18360903]
[1769979648282,0.21593,2318.4,2317.1,0.18360903]
[1769979648484,0.21593,2318.3,2317.1,0.18360903]
[1769979648889,0.21593,2318.2,2317.1,0.18360903]
[1769979650489,0.21593,2318.1,2317.1,0.18360903]
[1769979650789,0.21593,2318.2,2317.1,0.18360903]
[1769979651187,0.21593,2318.1,2317.1,0.18360903]
[1769979651390,0.21593,2318.2,2317.1,0.18360903]
[1769979651782,0.21593,2318.1,2317.1,0.18360903]
[1769979651988,0.21593,2318.2,2317.1,0.18360903]
[1769979653393,0.21593,2318.1,2317.1,0.18360903]
[1769979653590,0.43185,2318.1,2317.1,0.18360903]
[1769979653789,0.21592,2318.1,2317.1,0.18360903]
[1769979653989,0.21593,2317.8,2317.1,0.18360903]
[1769979654486,0.21593,2317.7,2317.1,0.18360903]
[1769979654687,0.21593,2317.8,2317.1,0.18360903]
[1769979655088,0.21593,2317.7,2317.1,0.18360903]
[1769979655288,0.21593,2317.8,2317.1,0.18360903]
[1769979655688,0.21593,2317.6,2317.1,0.18360903]
[1769979655894,0.21593,2317.7,2317.1,0.18360903]
[1769979656393,0.21593,2317.6,2317.1,0.18360903]
[1769979656599,0.21593,2317.7,2317.1,0.18360903]
[1769979657093,0.21593,2317.6,2317.1,0.18360903]
[1769979657292,0.21593,2317.7,2317.1,0.18360903]
[1769979657691,0.21593,2317.6,2317.1,0.18360903]
[1769979657892,0.21593,2317.7,2317.1,0.18360903]
[1769979658294,0.21593,2317.6,2317.1,0.18360903]
[1769979658593,0.21593,2317.7,2317.1,0.18360903]
[1769979658995,0.21593,2317.6,2317.1,0.18360903]
[1769979659196,0.21593,2317.7,2317.1,0.18360903]
[1769979659596,0.21593,2317.6,2317.1,0.18360903]
[1769979659792,0.21593,2317.7,2317.1,0.18360903]
[1769979660296,0.21593,2317.6,2317.1,0.18360903]
[1769979660595,0.21593,2317.7,2317.1,0.18360903]
[1769979660797,0.21593,2317.5,2317.0,0.00427064]
[1769979660997,0.21593,2317.3,2316.5,6.63447378]
[1769979661193,0.14715958,2317.2,2316.5,4.0527232]
[1769979661391,0.14715958,2317.2,2316.0,2.58175058]
[1769979661891,0.14715958,2317.2,2316.0,4.05682558]
[1769979661892,0.36308958,2317.0,2316.0,4.05682558]
[1769979662099,0.14715958,2316.5,2315.4,2.58175058]
[1769979662290,0.14715958,2316.3,2314.9,2.58175058]
[1769979662489,0.14715958,2316.0,2314.8,3.886]
[1769979662702,0.14715958,2315.7,2314.3,6.63276114]
[1769979662999,0.14715958,2315.6,2314.4,0.16370326]
[1769979663200,0.36308958,2315.6,2314.4,0.16816219]
[1769979663397,0.14621507,2315.5,2314.4,0.16816219]
[1769979663592,0.15118099,2315.5,2314.4,0.16816219]
[1769979663794,0.21593,2315.2,2314.4,0.16816219]
[1769979664297,0.21593,2315.0,2314.4,0.16816219]
[1769979664498,0.21593,2315.1,2314.4,0.16816219]
[1769979664699,0.00496592,2315.5,2314.6,0.16370326]
[1769979666402,0.14531416,2316.3,2314.6,0.16370326]
[1769979667202,0.15028008,2317.1,2315.0,0.16370326]
[1769979667394,0.15028008,2317.1,2315.2,0.16370326]
[1769979667395,0.00420404,2316.3,2315.2,0.16370326]
[1769979667599,0.15028008,2317.1,2315.4,0.14995223]
[1769979668000,0.15695292,2317.4,2315.8,0.14995223]
[1769979668198,0.37291292,2317.7,2315.8,0.14995223]
[1769979668397,0.15695292,2317.7,2315.9,0.14995223]
[1769979668596,0.16008145,2317.7,2316.2,0.14995223]
[1769979668800,0.16008145,2317.7,2316.2,0.15542105]
[1769979669004,0.21593,2317.6,2316.2,0.15542105]
[1769979669497,0.00312853,2317.7,2316.2,0.15542105]
[1769979670702,0.16008145,2317.7,2316.2,0.15542105]
[1769979670904,0.21593,2317.2,2316.2,0.15542105]
[1769979671499,0.0493254,2317.2,2316.2,0.15542105]
[1769979671704,0.00312853,2317.7,2316.2,0.15542105]
[1769979671904,0.16008145,2317.7,2316.3,0.14995223]
[1769979672602,0.16008145,2317.7,2316.2,0.00546882]
[1769979672905,0.15695292,2317.6,2316.2,0.00546882]
[1769979674406,0.15695292,2317.2,2316.2,0.00546882]
[1769979676207,0.15695292,2317.2,2316.2,0.15542105]
[1769979677309,0.15695292,2317.2,2316.2,0.00546882]
[1769979680606,0.16008145,2317.7,2316.5,0.14995223]
[1769979680811,0.37292292,2317.5,2316.2,0.00546882]
[1769979681010,0.15695292,2317.1,2316.2,0.00546882]
[1769979681710,0.15695292,2316.8,2315.6,2.534]
[1769979682011,0.15695292,2316.8,2315.6,2.68395223]
[1769979682211,0.15695292,2316.8,2315.7,0.14995223]
[1769979682812,0.15695292,2316.5,2315.7,0.00443832]
[1769979683012,0.15695292,2316.5,2315.7,0.15439055]
[1769979683210,0.37302292,2316.4,2315.7,0.00443832]
[1769979683415,0.15695292,2316.3,2315.7,0.00443832]
[1769979684407,0.15695292,2316.3,2315.5,3.888]
[1769979684613,0.15695292,2316.3,2315.1,0.14995223]
[1769979685013,0.15695292,2316.0,2314.8,2.68395223]
[1769979685216,0.15695292,2316.0,2314.9,0.14995223]
[1769979685413,0.00470619,2316.0,2314.9,0.1537165]
[1769979686213,0.15695292,2316.6,2315.1,0.14995223]
[1769979686419,0.15695292,2316.6,2315.2,0.14995223]
[1769979686809,0.15695292,2316.6,2315.3,0.14995223]
[1769979687316,0.00524215,2316.6,2315.3,2.72397027]
[1769979687515,0.00524215,2316.6,2315.4,0.14995223]
[1769979687711,0.00524215,2316.6,2315.6,0.14995223]
[1769979688816,0.00524215,2316.6,2315.7,0.14995223]
[1769979693319,0.00524215,2316.6,2315.8,0.14995223]
[1769979695018,0.16219507,2316.6,2315.8,0.14995223]
[1769979695217,0.16219507,2316.6,2315.5,6.57195223]
[1769979695617,0.16219507,2316.6,2315.5,6.422]
[1769979695823,0.16219507,2316.6,2315.5,3.888]
[1769979696422,0.15695292,2316.4,2315.5,3.888]
[1769979696622,0.15695292,2316.3,2315.1,2.534]
[1769979697121,0.15695292,2316.3,2314.9,0.1537165]
[1769979697524,0.15131034,2316.1,2314.9,0.1537165]
[1769979704326,0.15131034,2316.3,2315.0,0.15326263]
[1769979704525,0.15131034,2316.3,2315.2,0.15326263]
[1769979704826,0.15131034,2316.1,2315.1,2.534]
[1769979705026,0.15131034,2316.0,2315.1,2.534]
[1769979706823,0.16036948,2315.9,2315.1,2.534]
[1769979707223,0.16036948,2315.9,2314.9,0.00376427]
[1769979707828,0.16036948,2315.3,2314.6,3.888]
[1769979708023,0.16036948,2315.2,2314.2,2.535]
[1769979708824,0.16036948,2314.7,2313.7,2.57401804]
[1769979709028,0.16036948,2314.5,2313.5,0.15169662]
[1769979709924,0.16447191,2314.5,2313.5,0.15545622]
[1769979710529,0.16036948,2314.4,2313.5,0.0037596]
[1769979710933,0.37662948,2314.4,2313.5,0.0037596]
[1769979711133,0.16036948,2314.3,2313.5,0.0037596]
[1769979711328,0.16036948,2314.3,2313.3,0.22196456]
[1769979711632,0.16036948,2314.3,2313.3,0.37366118]
[1769979711829,0.16036948,2314.3,2313.4,0.15169662]
[1769979712330,0.16036948,2314.3,2313.4,0.15710221]
[1769979713125,0.16036948,2314.3,2313.4,0.00540559]
[1769979715330,0.16036948,2314.2,2313.4,0.00540559]
[1769979715532,0.16036948,2314.2,2312.9,0.15169662]
[1769979716231,0.21629,2314.1,2312.9,0.15169662]
[1769979716736,0.21629,2314.1,2312.9,0.15513963]
[1769979718132,0.37665948,2314.1,2312.9,0.15513963]
[1769979718332,0.16036948,2314.0,2312.9,0.15513963]
[1769979719533,0.00410243,2314.5,2312.9,0.15513963]
[1769979719534,0.16036948,2313.8,2312.9,0.15513963]
[1769979720137,0.16036948,2313.8,2312.9,0.00344301]
[1769979720341,0.16036948,2313.7,2312.9,0.00344301]
[1769979720635,0.21632,2313.8,2312.9,0.15513963]
[1769979720834,0.16036948,2314.0,2312.9,0.15513963]
[1769979721038,0.37663948,2314.3,2312.9,0.15513963]
[1769979721441,0.16036948,2314.2,2312.9,0.15513963]
[1769979721641,0.16447191,2314.5,2312.9,0.15513963]
[1769979721936,0.16447191,2314.5,2313.0,0.15169662]
[1769979722448,0.00410243,2314.5,2313.2,0.15169662]
[1769979722641,0.00410243,2314.5,2313.2,0.36806662]
[1769979722943,0.16036948,2315.1,2313.6,0.15169662]
[1769979723142,0.16036948,2315.1,2313.5,0.21634]
[1769979723143,0.16036948,2315.9,2313.8,0.15169662]
[1769979723336,0.16036948,2315.8,2314.1,0.15169662]
[1769979723540,0.16036948,2315.8,2314.3,0.15169662]
[1769979723740,0.16036948,2316.4,2314.3,0.15169662]
[1769979723935,0.1642059,2316.4,2314.3,0.15169662]
[1769979724346,0.1642059,2316.4,2314.5,0.15169662]
[1769979725146,0.1642059,2316.4,2314.6,0.15169662]
[1769979725347,0.1642059,2316.4,2314.8,0.15169662]
[1769979728744,0.00383642,2316.4,2315.1,0.16169407]
[1769979728951,0.16161265,2317.0,2315.3,0.16169407]
[1769979729448,0.16161265,2317.3,2315.7,0.16169407]
[1769979729641,0.16161265,2317.3,2315.6,2.57401804]
[1769979729847,0.16161265,2316.7,2315.2,2.73571211]
[1769979730146,0.16161265,2316.7,2315.2,0.16169407]
[1769979730649,0.16161265,2316.4,2314.7,0.16169407]
[1769979730849,0.16161265,2316.2,2314.7,0.16169407]
[1769979731048,2.535,2316.4,2314.7,0.16169407]
[1769979731049,0.16161265,2315.9,2314.7,0.16169407]
[1769979732544,0.16161265,2316.3,2314.7,0.16169407]
[1769979734151,0.16161265,2316.3,2314.8,0.16169407]
[1769979736953,0.16161265,2316.0,2314.7,2.535]
[1769979738357,0.16161265,2315.7,2314.7,2.535]
[1769979738559,0.16161265,2315.7,2314.6,0.0043121]
[1769979740054,0.16161265,2315.1,2313.9,0.16169407]
[1769979740251,6.58256336,2315.8,2313.5,33.91635804]
[1769979740252,0.16161265,2314.8,2313.6,0.16169407]
[1769979740455,2.535,2315.4,2313.5,3.89]
[1769979740456,0.16161265,2314.6,2313.5,3.89]
[1769979740757,0.16161265,2314.3,2313.2,0.16169407]
[1769979740956,0.16161265,2314.9,2313.2,0.16169407]
[1769979741155,0.16161265,2314.8,2313.2,0.16651462]
[1769979744456,0.16161265,2314.5,2313.2,0.16651462]
[1769979745760,0.16161265,2314.1,2313.2,0.00482055]
[1769979745966,0.34341465,2314.8,2312.5,5.14803608]
[1769979745967,0.16161265,2313.8,2312.5,0.16169407]
[1769979746363,2.536,2314.4,2312.5,0.16169407]
[1769979746364,0.16161265,2313.7,2312.5,0.16169407]
[1769979747061,0.16161265,2313.7,2312.5,0.16712673]
[1769979747266,0.16161265,2313.3,2312.5,0.00543266]
[1769979747465,0.16161265,2313.6,2312.5,0.16712673]
[1769979747669,0.16161265,2313.9,2312.5,0.16712673]
[1769979753168,0.16161265,2313.2,2311.7,2.57401804]
[1769979753372,0.16161265,2313.2,2311.7,0.16169407]
[1769979753569,2.41398265,2313.3,2311.7,0.16169407]
[1769979754366,0.21638,2313.2,2311.7,0.16580772]
[1769979754762,2.41884494,2313.3,2311.7,0.16580772]
[1769979754763,0.2164,2312.9,2311.7,0.00411365]
[1769979755667,0.16161265,2312.3,2311.0,0.16169407]
[1769979756472,0.16161265,2312.3,2311.0,0.16574849]
[1769979759968,2.537,2312.5,2311.0,0.16574849]
[1769979760466,4.05102684,2312.6,2311.1,0.16010253]
[1769979760467,0.15802684,2312.6,2311.1,0.16010253]
[1769979760671,0.15802684,2313.2,2311.1,0.16010253]
[1769979761676,0.15802684,2313.1,2311.1,0.16010253]
[1769979763176,0.15802684,2313.1,2311.1,0.37667253]
[1769979763376,0.15802684,2313.1,2311.2,0.16010253]
[1769979763773,0.15802684,2313.1,2311.0,3.89805442]
[1769979763774,0.15802684,2313.1,2311.0,0.00405442]
[1769979763979,0.15802684,2312.1,2310.4,0.16010253]
[1769979764175,0.15802684,2311.7,2309.7,0.16010253]
[1769979764375,0.15802684,2311.3,2309.4,0.16010253]
[1769979764573,0.15802684,2311.1,2309.4,0.16010253]
[1769979764772,0.15802684,2310.7,2309.1,0.16010253]
[1769979764976,0.15802684,2310.7,2309.1,0.1646644]
[1769979764977,0.16108762,2310.7,2309.1,0.1646644]
[1769979765174,0.15802684,2310.4,2309.1,0.00456187]
[1769979765377,0.36950535,2310.3,2309.1,0.00456187]
[1769979765577,0.15286535,2310.2,2308.9,0.16088611]
[1769979766781,0.15286535,2310.6,2309.0,0.15076621]
[1769979767282,0.15286535,2310.5,2309.0,0.15076621]
[1769979768281,0.00306078,2310.7,2309.0,0.15076621]
[1769979768580,0.15592613,2310.7,2309.1,0.15076621]
[1769979770085,0.21662,2310.6,2308.9,0.16411544]
[1769979770383,0.15286535,2310.2,2308.9,0.16411544]
[1769979770584,0.00306078,2310.7,2308.9,0.16411544]
[1769979770585,0.15286535,2310.6,2308.9,0.16411544]
[1769979771187,0.15286535,2310.5,2308.9,0.16411544]
[1769979772681,0.15286535,2310.4,2308.9,0.16411544]
[1769979772888,0.15286535,2310.4,2309.0,0.15076621]
[1769979773286,0.15286535,2310.3,2309.0,0.15076621]
[1769979773686,0.15286535,2310.2,2309.0,0.15076621]
[1769979773989,0.15286535,2310.2,2308.5,0.21681]
[1769979773990,0.15286535,2309.5,2308.2,3.898]
[1769979774391,0.15286535,2310.0,2308.4,0.15076621]
[1769979774583,0.15286535,2310.0,2308.5,0.15076621]
[1769979774988,0.15286535,2310.0,2308.5,0.1552894]
[1769979775687,0.15286535,2310.3,2308.7,0.15076621]
[1769979775988,0.15286535,2310.6,2308.8,0.15076621]
[1769979776782,0.36948535,2310.6,2308.8,0.15076621]
[1769979776988,0.15958274,2310.3,2308.8,0.15076621]
[1769979777589,0.15958274,2310.1,2308.8,0.15076621]
[1769979778587,0.15958274,2310.4,2308.8,0.15076621]
[1769979778791,0.16264352,2310.7,2308.8,0.15076621]
[1769979779388,0.00306078,2310.7,2309.2,0.15195863]
[1769979779595,0.16264352,2310.7,2309.6,0.15195863]
[1769979780288,0.00306078,2310.7,2309.6,0.15195863]
[1769979780792,0.15958274,2311.8,2310.0,0.15195863]
[1769979780995,0.15958274,2311.7,2310.2,0.15195863]
[1769979781893,0.16369612,2311.7,2310.3,0.15195863]
[1769979782589,0.15958274,2312.3,2310.6,0.15195863]
[1769979782794,0.15958274,2312.2,2310.6,0.15195863]
[1769979783394,0.15958274,2312.1,2310.6,0.15195863]
[1769979783794,0.16408753,2312.1,2310.6,0.15195863]
[1769979784390,0.00450479,2312.1,2310.6,0.15195863]
[1769979784796,0.16408753,2312.1,2310.6,0.15195863]
[1769979784996,0.15958274,2311.8,2310.5,0.15195863]
[1769979786694,0.15958274,2311.7,2310.5,0.15195863]
[1769979788792,0.15958274,2311.7,2310.2,0.00542435]
[1769979788793,0.15909552,2311.3,2310.2,0.00542435]
[1769979789201,0.15909552,2310.9,2309.6,0.15628456]
[1769979789592,0.15909552,2310.9,2309.1,0.15628456]
[1769979789792,0.21658,2311.0,2308.9,7.75902706]
[1769979789793,0.15909552,2310.3,2308.9,2.57401804]
[1769979790098,0.15909552,2309.7,2308.5,0.15628456]
[1769979790298,0.16366927,2309.7,2308.5,0.00394689]
[1769979790596,0.16366927,2309.7,2308.5,0.16023145]
[1769979791302,0.00457375,2309.7,2308.5,0.16023145]
[1769979791503,0.00457375,2309.7,2308.6,0.15628456]
[1769979793805,4.05709552,2310.7,2308.8,0.15628456]
[1769979794005,0.15909552,2310.6,2308.9,0.15628456]
[1769979794510,0.15909552,2310.9,2309.2,0.15628456]
[1769979794705,0.15909552,2310.8,2309.4,0.15628456]
[1769979795308,0.15909552,2310.5,2309.4,0.15628456]
[1769979795506,0.15909552,2310.4,2309.3,0.15628456]
[1769979796904,0.21663,2310.5,2309.3,0.15628456]
[1769979797110,0.00339995,2310.9,2309.5,0.15628456]
[1769979797305,0.16249547,2310.9,2309.6,0.15628456]
[1769979798308,0.00339995,2310.9,2309.6,0.15628456]
[1769979800013,0.00339995,2310.9,2309.7,0.15628456]
[1769979801715,0.16249547,2310.9,2309.7,0.15628456]
[1769979802811,0.00339995,2310.9,2309.7,0.15628456]
[1769979804221,0.00339995,2310.9,2309.8,0.15628456]
[1769979806114,0.15909552,2311.6,2310.2,0.15628456]
[1769979806322,0.15909552,2311.6,2310.4,0.15628456]
[1769979807224,0.16343332,2311.6,2310.4,0.15982206]
[1769979809323,0.37562552,2311.5,2310.4,0.0035375]
[1769979809624,0.15909552,2311.4,2310.1,0.15628456]
[1769979810516,0.15909552,2311.4,2310.1,0.16107571]
[1769979810919,0.0043378,2311.6,2310.1,0.16107571]
[1769979811423,0.16343332,2311.6,2310.1,0.16107571]
[1769979811925,0.0043378,2311.6,2310.4,0.15628456]
[1769979812722,0.0043378,2311.6,2310.5,2.54]
[1769979812923,0.0043378,2311.6,2310.6,0.15628456]
[1769979813724,0.15909552,2312.3,2310.7,0.15628456]
[1769979814521,0.15909552,2312.1,2310.7,0.15628456]
[1769979814825,0.16446951,2312.1,2310.7,0.15628456]
[1769979815620,0.15909552,2311.6,2310.6,3.898]
[1769979816119,0.15909552,2311.6,2310.7,0.15628456]
[1769979817029,0.15909552,2312.0,2310.7,0.15628456]
[1769979818231,2.86597488,2311.8,2310.6,3.898]
[1769979818431,0.16617007,2311.7,2310.6,3.898]
[1769979819128,0.16617007,2312.0,2310.7,0.16580754]
[1769979820925,0.00537399,2312.1,2310.4,0.16580754]
[1769979820926,0.16617007,2311.7,2310.4,0.16580754]
[1769979821922,0.16617007,2312.0,2310.5,0.16580754]
[1769979822229,0.00537399,2312.1,2310.9,0.16580754]
[1769979822527,0.00537399,2312.1,2311.0,0.16580754]
[1769979823830,0.00537399,2312.1,2311.0,4.06280754]
[1769979824130,0.00537399,2312.1,2311.1,0.16580754]
[1769979828130,0.2165,2311.9,2311.1,0.16580754]
[1769979828631,0.1573021,2311.7,2310.8,0.15221113]
[1769979831932,0.21653,2311.6,2310.8,0.15221113]
[1769979832622,0.22185399,2312.1,2310.8,0.15221113]
[1769979832825,0.22185399,2312.1,2311.0,0.15221113]
[1769979833823,0.21649,2312.0,2311.0,0.15221113]
[1769979834021,0.3737921,2312.0,2311.0,0.15221113]
[1769979834222,0.1573021,2311.9,2311.0,0.15221113]
[1769979834822,0.1573021,2311.9,2310.7,0.15221113]
[1769979835023,0.21654,2311.4,2310.7,0.15221113]
[1769979835628,0.1573021,2311.7,2310.7,0.15221113]
[1769979835832,0.2165,2311.9,2310.7,0.15221113]
[1769979836033,0.3738021,2311.9,2310.7,0.15221113]
[1769979836929,0.1573021,2311.7,2310.7,0.15221113]
[1769979837229,0.3738421,2311.5,2310.5,0.15221113]
[1769979837829,0.3738521,2311.4,2310.5,0.15221113]
[1769979838029,0.1573021,2311.3,2310.4,2.69121113]
[1769979838229,0.1573021,2311.3,2310.5,0.15221113]
[1769979838731,0.1573021,2311.3,2310.4,2.539]
[1769979839127,0.1573021,2311.3,2310.4,2.69121113]
[1769979839332,0.1573021,2311.8,2310.5,0.15221113]
[1769979839735,0.00537399,2312.1,2310.7,0.15221113]
[1769979839934,0.00537399,2312.1,2311.0,2.72622917]
[1769979840137,0.00537399,2312.1,2311.1,9.27466464]
[1769979840337,0.1573021,2312.6,2311.3,0.15221113]
[1769979840533,0.1573021,2312.1,2311.0,0.15221113]
[1769979840728,0.1573021,2312.0,2311.0,0.15221113]
[1769979841533,0.00438795,2312.0,2311.0,0.15221113]
[1769979841738,0.00438795,2312.0,2311.2,0.15221113]
[1769979842131,9.35886252,2313.4,2311.2,0.15221113]
[1769979842132,0.1573021,2312.7,2311.2,0.15221113]
[1769979842335,0.1573021,2312.7,2311.3,0.15221113]
[1769979842336,0.1573021,2312.5,2311.3,0.15221113]
[1769979842939,0.1573021,2312.1,2310.7,0.15221113]
[1769979843138,0.16066484,2312.1,2310.7,0.15221113]
[1769979843332,0.1573021,2311.7,2310.7,0.15221113]
[1769979844036,0.1573021,2311.6,2310.5,0.15221113]
[1769979844236,0.1573021,2311.3,2310.2,4.04921113]
[1769979845338,0.21654,2311.4,2310.3,0.15221113]
[1769979845634,0.1573021,2311.3,2310.3,0.15221113]
[1769979845835,0.3738521,2311.3,2310.3,0.15221113]
[1769979846433,0.1573021,2311.3,2310.3,0.15221113]
[1769979846633,0.21659,2310.9,2310.2,3.897]
[1769979846840,0.21659,2310.9,2310.1,0.00479115]
[1769979846841,0.1573021,2310.8,2310.1,0.00479115]
[1769979847345,0.1573021,2310.6,2309.7,0.15221113]
[1769979847744,0.3739221,2310.6,2309.7,0.15221113]
[1769979847944,0.15038783,2311.0,2309.7,0.15221113]
[1769979848140,0.36696783,2311.0,2309.7,0.15221113]
[1769979848342,0.36698783,2310.8,2309.7,0.15647296]
[1769979848538,0.15038783,2310.7,2309.7,0.15647296]
[1769979849544,0.2166,2310.8,2309.7,0.15647296]
[1769979850545,0.15038783,2311.1,2309.8,0.15787104]
[1769979850849,3.897,2311.2,2310.0,0.15787104]
[1769979851041,4.04738783,2311.2,2310.0,0.15787104]
[1769979853843,0.15038783,2311.1,2310.0,0.15787104]
[1769979856936,0.21655,2311.3,2310.0,0.15787104]
[1769979857137,0.36693783,2311.3,2310.0,0.15787104]
[1769979857948,0.15038783,2311.2,2310.0,0.15787104]
[1769979859448,0.15038783,2311.5,2310.0,0.15787104]
[1769979859843,0.15038783,2311.5,2310.1,2.54]
[1769979860252,5.27395819,2311.5,2310.1,2.54]
[1769979861250,9.38846819,2311.8,2310.1,2.75666]
[1769979861445,4.26489783,2311.8,2310.1,2.75666]
[1769979861744,5.27732093,2312.1,2310.4,0.21663]
[1769979861950,5.27732093,2312.1,2310.6,0.15787104]
[1769979862753,0.00336274,2312.1,2310.9,0.15787104]
[1769979863049,0.00336274,2312.1,2311.1,0.15787104]
[1769979870164,0.00336274,2312.1,2311.1,2.69787104]
[1769979870364,0.00336274,2312.1,2311.2,0.15787104]
[1769979871265,0.15038783,2312.0,2311.2,0.15787104]
[1769979877065,0.00336274,2312.1,2311.2,0.15787104]
[1769979877266,0.15375057,2312.1,2311.2,0.15787104]
[1769979879565,0.15627203,2312.0,2310.7,0.15258408]
[1769979879860,0.15627203,2311.5,2310.0,0.15258408]
[1769979880170,0.15627203,2311.0,2310.0,0.15258408]
[1769979880666,0.15627203,2311.0,2309.9,2.539]
[1769979881365,0.15627203,2311.0,2309.9,2.69158408]
[1769979882767,0.15627203,2311.0,2309.9,0.15258408]
[1769979882968,0.15627203,2310.8,2309.7,3.90026183]
[1769979883466,0.15627203,2310.6,2309.7,3.90026183]
[1769979884461,0.15627203,2310.6,2309.7,4.05284591]
[1769979885067,0.15627203,2310.6,2309.7,0.15684591]
[1769979885561,0.37289203,2310.6,2309.7,0.00426183]
[1769979885763,0.15990155,2310.3,2309.2,3.897]
[1769979886756,0.16449107,2310.3,2309.2,3.90097824]
[1769979888159,0.15990155,2310.0,2309.2,0.00397824]
[1769979888360,0.15990155,2310.0,2308.8,0.16440388]
[1769979888558,0.21668,2310.0,2308.8,0.16440388]
[1769979888769,0.16449107,2310.3,2308.8,0.16440388]
[1769979889071,0.16449107,2310.3,2308.9,0.16440388]
[1769979889262,0.15990155,2310.2,2308.9,0.16856955]
[1769979889462,0.16040452,2310.1,2308.9,0.16856955]
[1769979890364,0.00458952,2310.3,2308.9,0.16856955]
[1769979890566,0.16499404,2310.3,2308.9,0.16876615]
[1769979890764,0.16040452,2309.8,2308.9,0.00416567]
[1769979890971,0.16040452,2309.4,2308.4,0.16460048]
[1769979891272,0.16040452,2309.3,2308.3,0.22196456]
[1769979892272,0.16040452,2309.2,2308.3,0.22564344]
[1769979892570,0.16040452,2309.1,2308.3,0.22564344]
[1769979892773,0.16040452,2309.0,2307.8,0.16460048]
[1769979893273,0.16040452,2308.9,2307.8,0.16460048]
[1769979893465,0.16040452,2308.8,2307.5,0.16460048]
[1769979894269,0.16040452,2308.7,2307.5,0.16460048]
[1769979894769,0.16040452,2308.7,2307.5,0.1682592]
[1769979895671,0.16040452,2308.6,2307.5,0.00365872]
[1769979895866,0.16492202,2308.6,2307.5,0.00365872]
[1769979896062,0.37722452,2308.4,2307.5,0.00365872]
[1769979896272,0.16040452,2308.3,2307.5,0.00365872]
[1769979897073,0.16492202,2308.6,2307.5,0.1682592]
[1769979897374,0.16040452,2308.1,2307.2,0.16460048]
[1769979898071,0.16040452,2308.1,2306.9,0.16460048]
[1769979898268,0.16040452,2308.2,2306.9,0.16460048]
[1769979898473,0.16040452,2308.1,2306.9,0.16981635]
[1769979898670,0.16040452,2308.0,2306.9,0.16981635]
[1769979898877,0.16040452,2307.9,2306.9,0.16981635]
[1769979899071,0.16040452,2307.8,2306.9,0.16981635]
[1769979899273,0.16040452,2307.8,2306.9,0.00521587]
[1769979899677,0.16040452,2307.8,2306.9,0.16981635]
[1769979900375,0.16040452,2307.5,2306.3,0.16460048]
[1769979900574,0.16040452,2307.4,2306.3,0.16460048]
[1769979901180,0.21691,2307.5,2306.3,0.16460048]
[1769979901378,0.21685,2308.2,2306.3,0.16977773]
[1769979901583,0.16040452,2308.1,2306.3,0.16977773]
[1769979901782,0.16040452,2308.1,2306.4,0.16460048]
[1769979902185,0.16040452,2308.1,2306.5,0.16460048]
[1769979902384,0.16040452,2308.1,2306.6,0.16460048]
[1769979903079,0.16040452,2307.8,2306.3,0.16977773]
[1769979903281,0.16040452,2307.7,2306.3,0.16977773]
[1769979904085,0.21688,2307.8,2306.3,0.16977773]
[1769979904784,2.70122594,2308.4,2306.3,0.16977773]
[1769979904785,0.16040452,2308.3,2306.3,0.16977773]
[1769979905282,0.16492202,2308.6,2306.7,0.16460048]
[1769979905481,0.16492202,2308.6,2306.9,0.16460048]
[1769979905787,0.16040452,2308.4,2306.9,0.16460048]
[1769979905983,0.0045175,2308.6,2307.0,0.16460048]
[1769979906685,0.16492202,2308.6,2307.0,0.16460048]
[1769979906881,0.16040452,2308.2,2307.0,0.16460048]
[1769979907084,0.16040452,2307.9,2307.0,0.16460048]
[1769979907781,0.21686,2308.0,2307.0,0.16460048]
[1769979907986,0.15411528,2308.2,2307.0,0.16460048]
[1769979908588,0.15411528,2308.1,2307.0,0.16460048]
[1769979908984,2.92386755,2307.9,2306.4,0.15766091]
[1769979909189,0.15411528,2307.8,2306.4,0.15766091]
[1769979910582,0.15411528,2307.7,2306.4,0.15766091]
[1769979910984,0.21684,2308.3,2306.4,0.15766091]